bitfinex/quotes_SOLUSD_20251126
["timestamp","ask_amount","ask_price","bid_price","bid_amount"]
[1764169282812,16.308864,136.49,136.45,11.26004627]
[1764169283225,8.80994492,136.47,136.41,0.68]
[1764169283518,11.26004627,136.46,136.41,11.26004627]
[1764169283923,11.26004627,136.46,136.42,7.33030347]
[1764169284341,16.308864,136.42,136.4,0.1]
[1764169284703,13.26426806,136.45,136.4,7.43130502]
[1764169285000,11.26004627,136.44,136.4,7.43130502]
[1764169285219,11.26004627,136.43,136.4,7.43130502]
[1764169285502,0.69,136.44,136.4,7.43130502]
[1764169285503,11.26004627,136.44,136.4,7.43130502]
[1764169286098,11.95004627,136.44,136.4,0.1]
[1764169286295,8.80994492,136.41,136.4,0.1]
[1764169286713,21.04431433,136.41,136.4,0.1]
[1764169286913,25.11880892,136.41,136.4,0.1]
[1764169287124,27.56891027,136.41,136.4,0.1]
[1764169287420,16.308864,136.41,136.4,0.1]
[1764169287627,28.25891027,136.41,136.4,0.1]
[1764169287936,40.83317833,136.41,136.4,0.1]
[1764169288098,3.48,136.41,136.4,0.1]
[1764169288306,24.52431433,136.41,136.4,0.1]
[1764169288626,27.56891027,136.38,136.35,0.1]
[1764169289129,11.26004627,136.37,136.35,0.1]
[1764169290022,16.308864,136.37,136.35,8.11391492]
[1764169290209,16.308864,136.37,136.35,7.43391492]
[1764169290809,11.26004627,136.4,136.35,7.43391492]
[1764169291016,16.308864,136.39,136.35,7.43391492]
[1764169291531,16.308864,136.39,136.35,8.11391492]
[1764169291714,16.308864,136.39,136.35,7.43391492]
[1764169292328,16.308864,136.39,136.35,25.76908177]
[1764169292531,27.56891027,136.39,136.35,7.43391492]
[1764169292711,14.74004627,136.41,136.36,0.68]
[1764169292911,16.308864,136.38,136.36,11.94004627]
[1764169293118,19.788864,136.41,136.37,11.26004627]
[1764169293319,19.788864,136.41,136.37,11.94004627]
[1764169293728,31.04891027,136.41,136.36,11.26004627]
[1764169294336,19.788864,136.41,136.36,0.68]
[1764169294627,31.04891027,136.41,136.36,0.68]
[1764169294809,11.26004627,136.4,136.35,11.36004627]
[1764169295133,11.26004627,136.4,136.35,0.1]
[1764169295329,11.26004627,136.4,136.35,12.04004627]
[1764169295531,19.788864,136.41,136.36,11.94004627]
[1764169295831,11.26004627,136.39,136.35,0.1]
[1764169296126,11.26004627,136.38,136.35,0.1]
[1764169296637,7.33163183,136.4,136.35,0.1]
[1764169296638,11.26004627,136.39,136.35,0.1]
[1764169297532,11.26004627,136.38,136.35,0.1]
[1764169297719,11.26004627,136.37,136.35,0.1]
[1764169298035,3.48,136.38,136.35,0.1]
[1764169298530,27.25993275,136.38,136.35,0.1]
[1764169298909,19.788864,136.38,136.35,0.1]
[1764169299133,7.47106875,136.4,136.35,8.25106875]
[1764169299332,38.63867372,136.47,136.35,8.25106875]
[1764169299333,0.69,136.45,136.35,0.78]
[1764169299626,0.69,136.45,136.37,7.47106875]
[1764169299627,16.308864,136.42,136.37,7.47106875]
[1764169299847,7.47106875,136.43,136.37,7.47106875]
[1764169300027,3.48,136.44,136.39,7.47106875]
[1764169300234,10.95106875,136.44,136.39,7.47106875]
[1764169300414,10.95106875,136.44,136.4,7.33137829]
[1764169300615,23.77993275,136.45,136.4,33.13089278]
[1764169300808,7.47106875,136.48,136.43,7.47106875]
[1764169301013,10.95106875,136.49,136.44,7.47106875]
[1764169301529,3.48,136.49,136.45,7.47106875]
[1764169301910,3.48,136.49,136.45,8.15106875]
[1764169302109,3.48,136.49,136.46,7.47106875]
[1764169302310,3.48,136.49,136.46,7.32815477]
[1764169302526,7.47106875,136.5,136.46,7.32815477]
[1764169302730,0.69,136.5,136.46,7.32815477]
[1764169302927,7.47106875,136.49,136.46,7.32815477]
[1764169303528,8.16106875,136.5,136.46,7.32815477]
[1764169303724,7.47106875,136.5,136.46,7.32815477]
[1764169303932,7.47106875,136.48,136.41,8.01084084]
[1764169304107,16.308864,136.48,136.43,7.47106875]
[1764169304429,16.308864,136.48,136.44,7.32922896]
[1764169304612,16.308864,136.48,136.44,14.80029771]
[1764169304812,16.308864,136.48,136.44,33.82337012]
[1764169305406,7.47106875,136.49,136.44,7.32922896]
[1764169305612,7.47106875,136.47,136.42,7.33030347]
[1764169305816,10.95106875,136.48,136.42,33.1271309]
[1764169306111,3.48,136.48,136.43,8.17106875]
[1764169306316,7.47106875,136.47,136.42,7.33030347]
[1764169306816,7.47106875,136.47,136.42,8.03030347]
[1764169307016,7.47106875,136.45,136.39,0.7]
[1764169307311,7.47106875,136.45,136.39,8.17106875]
[1764169308250,16.978864,136.46,136.37,3.48]
[1764169308251,7.47106875,136.46,136.41,7.47106875]
[1764169308430,23.77993275,136.47,136.42,7.47106875]
[1764169308628,23.77993275,136.47,136.43,25.65418163]
[1764169309520,7.47106875,136.47,136.43,26.35418163]
[1764169309836,10.95106875,136.48,136.43,33.82525038]
[1764169310038,7.47106875,136.49,136.44,0.7]
[1764169310214,4.15,136.51,136.44,8.17106875]
[1764169310415,7.47106875,136.5,136.44,8.17106875]
[1764169310639,7.47106875,136.49,136.45,7.32869182]
[1764169310836,4.15,136.51,136.45,7.32869182]
[1764169310837,3.48,136.51,136.45,33.82149014]
[1764169311028,3.48,136.51,136.45,7.32869182]
[1764169311029,7.47106875,136.5,136.45,7.32869182]
[1764169311227,7.47106875,136.49,136.45,7.32869182]
[1764169312113,7.47106875,136.5,136.45,15.49976057]
[1764169312314,7.47106875,136.5,136.45,8.02869182]
[1764169312519,7.47106875,136.5,136.45,26.35042139]
[1764169313046,7.47106875,136.5,136.45,33.82149014]
[1764169313538,16.308864,136.51,136.47,7.47106875]
[1764169313743,16.308864,136.51,136.46,8.17106875]
[1764169313744,23.77993275,136.51,136.46,8.17106875]
[1764169314144,7.47106875,136.49,136.45,25.65042139]
[1764169314518,16.308864,136.51,136.46,0.7]
[1764169314747,16.308864,136.51,136.47,7.32761779]
[1764169315229,16.308864,136.51,136.47,8.02761779]
[1764169315447,16.308864,136.51,136.47,33.81773101]
[1764169315732,23.77993275,136.51,136.47,7.32761779]
[1764169316247,7.47106875,136.5,136.46,7.32794492]
[1764169316945,34.58552056,136.51,136.46,15.49901367]
[1764169317131,34.58552056,136.51,136.46,8.02794492]
[1764169317643,34.58552056,136.51,136.47,7.47106875]
[1764169317644,19.788864,136.51,136.47,7.47106875]
[1764169317820,19.788864,136.51,136.46,15.49901367]
[1764169318027,27.25993275,136.51,136.46,15.49901367]
[1764169318226,34.58544882,136.51,136.46,8.02794492]
[1764169318644,7.47106875,136.49,136.45,7.32857141]
[1764169318822,14.79763204,136.49,136.44,7.32922896]
[1764169319346,15.46763204,136.49,136.44,7.32922896]
[1764169319733,7.47106875,136.49,136.44,8.02922896]
[1764169319928,15.46763137,136.49,136.44,0.7]
[1764169320245,7.47106875,136.49,136.43,33.12517931]
[1764169320443,7.47106875,136.49,136.42,3.48]
[1764169320444,19.788864,136.5,136.45,7.47106875]
[1764169320621,7.47106875,136.49,136.42,25.65556451]
[1764169320823,7.47106875,136.47,136.42,25.65556451]
[1764169321334,3.48,136.47,136.43,0.7]
[1764169321735,10.95106875,136.47,136.42,25.65556451]
[1764169321938,86.60947683,136.58,136.42,25.65556451]
[1764169321939,0.67,136.54,136.46,7.47106875]
[1764169322142,3.48,136.54,136.51,7.47106875]
[1764169322331,10.95106875,136.57,136.47,0.7]
[1764169322532,10.95106875,136.57,136.48,7.47106875]
[1764169322533,7.47106875,136.53,136.48,7.47106875]
[1764169322739,7.47106875,136.52,136.47,11.65106875]
[1764169322928,7.47106875,136.54,136.48,14.79814964]
[1764169323133,7.47106875,136.53,136.48,33.11585186]
[1764169323333,7.47106875,136.53,136.48,25.64478311]
[1764169323536,8.14106875,136.52,136.45,7.32853555]
[1764169323739,2.19999999,136.62,136.5,7.47106875]
[1764169323928,7.47106875,136.59,136.53,7.47106875]
[1764169324142,7.47106875,136.59,136.51,0.7]
[1764169324344,7.47106875,136.57,136.51,8.17106875]
[1764169324528,7.47106875,136.56,136.49,0.7]
[1764169324728,7.47106875,136.54,136.49,0.7]
[1764169324952,20.458864,136.56,136.5,7.32600732]
[1764169325449,7.47106875,136.55,136.5,26.34102563]
[1764169325653,27.7817093,136.56,136.49,0.68]
[1764169325956,7.47106875,136.54,136.49,0.68]
[1764169326133,7.47106875,136.53,136.48,25.64445986]
[1764169326338,16.308864,136.53,136.47,7.3274706]
[1764169326658,16.308864,136.53,136.48,8.15106875]
[1764169326861,23.77993275,136.53,136.48,8.00673225]
[1764169327160,7.47106875,136.52,136.46,14.79882343]
[1764169327358,16.308864,136.53,136.49,0.68]
[1764169327524,16.308864,136.55,136.49,8.15106875]
[1764169327724,23.77993275,136.55,136.5,7.47106875]
[1764169327935,7.47106875,136.56,136.5,8.15106875]
[1764169328150,3.48,136.57,136.51,8.15106875]
[1764169328334,7.47106875,136.56,136.51,8.15106875]
[1764169328534,7.47106875,136.55,136.51,0.68]
[1764169328943,16.308864,136.56,136.52,7.32493407]
[1764169329141,7.47106875,136.56,136.52,7.32493407]
[1764169329455,10.95106875,136.57,136.53,0.68]
[1764169329671,8.18106875,136.56,136.52,7.32493407]
[1764169329975,23.77993275,136.56,136.52,7.32493407]
[1764169330279,23.77993275,136.56,136.52,8.00493407]
[1764169330448,7.47106875,136.55,136.51,7.32535676]
[1764169330766,7.47106875,136.55,136.51,8.00535676]
[1764169330978,7.47106875,136.56,136.52,0.68]
[1764169331152,7.47106875,136.58,136.53,7.47106875]
[1764169331533,7.47106875,136.59,136.54,0.68]
[1764169332269,7.47106875,136.6,136.55,7.47106875]
[1764169332470,7.47106875,136.61,136.54,0.68]
[1764169332768,7.47106875,136.61,136.55,7.47106875]
[1764169332954,7.47106875,136.61,136.56,25.6297598]
[1764169333275,7.51975521,136.62,136.56,25.6297598]
[1764169333276,7.47106875,136.6,136.56,25.6297598]
[1764169333556,7.47106875,136.61,136.56,33.78082855]
[1764169333767,0.2,136.62,136.59,7.47106875]
[1764169333947,7.47106875,136.61,136.57,0.68]
[1764169334145,7.47106875,136.6,136.57,0.68]
[1764169334351,0.2,136.62,136.59,7.47106875]
[1764169334548,8.33106875,136.62,136.57,0.72]
[1764169334751,7.67106875,136.62,136.58,0.72]
[1764169335057,0.2,136.62,136.59,25.6241306]
[1764169335436,7.67106875,136.62,136.59,7.32118017]
[1764169335641,0.2,136.62,136.59,25.6241306]
[1764169335960,0.2,136.62,136.6,8.19106875]
[1764169336146,0.2,136.62,136.61,8.19106875]
[1764169336349,1e-08,136.62,136.61,8.47539189]
[1764169336677,8.80994492,136.71,136.62,0.28432314]
[1764169336889,5.67999999,136.75,136.7,7.47106875]
[1764169336890,0.2,136.75,136.7,7.47106875]
[1764169337177,0.2,136.75,136.73,14.78475265]
[1764169337341,0.2,136.75,136.74,7.47106875]
[1764169337540,0.2,136.75,136.74,8.19106875]
[1764169337772,7.47106875,136.82,136.74,8.19106875]
[1764169337941,0.66,136.83,136.74,0.72]
[1764169338139,0.66,136.82,136.76,7.47106875]
[1764169338461,7.47106875,136.85,136.79,7.47106875]
[1764169338648,0.2,136.87,136.79,25.11880892]
[1764169338836,0.2,136.87,136.86,7.47106875]
[1764169339036,0.2,136.87,136.86,7.30673681]
[1764169339264,0.2,136.87,136.85,7.30717625]
[1764169339562,0.2,136.87,136.81,8.02925076]
[1764169339766,0.2,136.87,136.81,7.30925076]
[1764169339965,0.2,136.87,136.82,0.72]
[1764169340142,0.2,136.87,136.82,8.19106875]
[1764169340561,0.2,136.87,136.83,0.72]
[1764169340864,13.11428289,136.87,136.82,13.63428289]
[1764169341051,0.2,136.87,136.86,20.2210197]
[1764169341249,0.2,136.87,136.83,0.72]
[1764169341569,0.2,136.87,136.84,13.63428289]
[1764169341766,0.2,136.87,136.85,12.91428289]
[1764169341953,0.2,136.91,136.87,0.28432314]
[1764169342154,0.2,136.91,136.9,12.91428289]
[1764169342468,0.2,136.91,136.88,0.72]
[1764169342760,0.2,136.91,136.88,13.63428289]
[1764169342961,13.11428289,136.91,136.77,1.99999999]
[1764169343269,12.91428289,136.89,136.84,20.94167546]
[1764169343467,29.42314689,136.91,136.85,12.91428289]
[1764169343769,0.2,136.91,136.88,12.91428289]
[1764169343947,0.2,136.91,136.87,12.91428289]
[1764169344143,12.91428289,136.99,136.88,4.18]
[1764169344341,0.56758833,137.03,136.88,4.18]
[1764169344342,25.53439847,137.07,136.94,12.91428289]
[1764169344545,0.66,137.04,136.97,12.91428289]
[1764169344742,0.66,137.04,136.93,0.72]
[1764169344743,12.91428289,137.01,136.93,0.72]
[1764169344940,12.91428289,137.01,136.85,0.72]
[1764169344941,16.308864,136.95,136.85,0.72]
[1764169345140,16.308864,136.83,136.72,43.88531304]
[1764169345374,8.80994492,136.82,136.75,0.72]
[1764169345552,19.768864,136.85,136.75,0.72]
[1764169345876,0.28432314,136.84,136.76,12.91428289]
[1764169346072,0.66,136.84,136.78,12.91428289]
[1764169346372,16.308864,136.85,136.79,12.91428289]
[1764169346866,16.308864,136.85,136.81,12.91428289]
[1764169347066,16.308864,136.85,136.81,20.22364864]
[1764169347274,16.308864,136.85,136.82,12.91428289]
[1764169347451,16.308864,136.85,136.81,8.02936575]
[1764169347652,38.03309181,136.87,136.82,12.91428289]
[1764169347852,38.69309181,136.87,136.82,12.91428289]
[1764169348053,0.66,136.86,136.81,20.22364864]
[1764169348257,21.72422781,136.83,136.76,34.58774273]
[1764169348454,8.80994492,136.81,136.75,7.31215386]
[1764169348772,13.19860603,136.82,136.64,0.72]
[1764169348773,16.308864,136.77,136.64,0.72]
[1764169348979,5.45999999,136.8,136.64,0.72]
[1764169348980,12.91428289,136.7,136.64,0.72]
[1764169349167,9.09426806,136.69,136.62,0.72]
[1764169349467,0.28432314,136.69,136.63,0.72]
[1764169349644,16.308864,136.7,136.63,0.72]
[1764169349645,29.22314689,136.7,136.65,12.91428289]
[1764169349842,16.308864,136.7,136.66,12.91428289]
[1764169350065,0.66,136.74,136.68,12.91428289]
[1764169350264,0.66,136.8,136.68,28.57880892]
[1764169350470,0.14216157,136.81,136.74,12.91428289]
[1764169350769,8.80994492,136.79,136.71,16.308864]
[1764169351077,8.80994492,136.81,136.71,16.308864]
[1764169351078,0.66,136.81,136.76,12.91428289]
[1764169351293,21.72422781,136.82,136.77,7.31154492]
[1764169351453,21.72422781,136.8,136.74,20.22693131]
[1764169351653,12.91428289,136.8,136.74,20.22693131]
[1764169351960,16.968864,136.81,136.73,7.31362932]
[1764169351961,38.03309181,136.79,136.73,7.31362932]
[1764169352157,12.91428289,136.77,136.72,7.31418353]
[1764169352560,0.66,136.76,136.71,7.31463617]
[1764169352762,13.05661954,136.75,136.71,25.60152081]
[1764169353157,13.05661954,136.77,136.72,0.72]
[1764169353675,16.308864,136.7,136.6,0.72]
[1764169353849,3.46,136.69,136.55,8.04332478]
[1764169354048,16.308864,136.65,136.52,0.72]
[1764169354254,51.99999999,136.68,136.52,8.04448103]
[1764169354255,13.05661954,136.59,136.52,8.04448103]
[1764169354585,29.36548354,136.61,136.53,0.72]
[1764169354782,16.308864,136.64,136.53,0.72]
[1764169354953,16.308864,136.64,136.59,13.05661954]
[1764169355478,16.308864,136.64,136.6,13.77661954]
[1764169355675,13.05661954,136.68,136.62,13.05661954]
[1764169356062,8.80994492,136.62,136.57,25.62788313]
[1764169356382,19.768864,136.66,136.58,13.77661954]
[1764169356566,29.36548354,136.64,136.58,13.77661954]
[1764169356883,16.308864,136.64,136.58,0.72]
[1764169357060,16.308864,136.64,136.59,13.05661954]
[1764169357261,16.308864,136.64,136.6,25.62225475]
[1764169357462,13.05661954,136.65,136.6,26.34225475]
[1764169358059,32.82548354,136.66,136.61,0.72]
[1764169358373,4.12,136.7,136.63,13.05661954]
[1764169358578,21.86656446,136.69,136.61,0.72]
[1764169358782,8.80994492,136.69,136.63,13.05661954]
[1764169359084,13.05661954,136.68,136.62,13.05661954]
[1764169359278,13.05661954,136.68,136.63,25.61662884]
[1764169359579,13.05661954,136.67,136.63,7.31903681]
[1764169359962,13.05661954,136.66,136.63,7.31903681]
[1764169360167,13.05661954,136.67,136.63,7.31903681]
[1764169360367,13.05661954,136.66,136.63,7.31903681]
[1764169360584,9.46994492,136.68,136.63,7.31903681]
[1764169360877,16.308864,136.69,136.63,25.61662884]
[1764169361080,16.51661954,136.7,136.64,13.77661954]
[1764169361265,13.71661954,136.72,136.66,38.66762494]
[1764169361580,13.05661954,136.73,136.67,13.05661954]
[1764169361782,13.05661954,136.72,136.66,25.6110054]
[1764169361982,13.05661954,136.71,136.66,7.31743011]
[1764169362384,13.05661954,136.71,136.66,8.03743011]
[1764169362570,16.968864,136.73,136.66,25.6110054]
[1764169362774,13.05661954,136.71,136.66,38.66762494]
[1764169362970,16.968864,136.73,136.66,39.38762494]
[1764169363172,13.05661954,136.71,136.66,25.6110054]
[1764169363484,13.05661954,136.72,136.66,39.38762494]
[1764169363686,16.308864,136.72,136.68,13.05661954]
[1764169363864,16.308864,136.72,136.67,13.77661954]
[1764169364190,32.82548354,136.74,136.68,13.05661954]
[1764169364361,13.05661954,136.72,136.66,26.3110054]
[1764169364561,20.438864,136.74,136.67,13.05661954]
[1764169364562,21.86656446,136.73,136.67,13.05661954]
[1764169365360,13.05661954,136.73,136.68,25.60725781]
[1764169365587,16.308864,136.71,136.56,1.99999999]
[1764169365790,50.0,136.6,136.46,7.32815477]
[1764169365965,11.09426805,136.61,136.4,0.7]
[1764169365966,16.308864,136.44,136.4,0.7]
[1764169366170,16.308864,136.44,136.35,0.1]
[1764169366171,16.308864,136.37,136.35,0.1]
[1764169366381,16.51661954,136.36,136.26,0.1]
[1764169366578,16.308864,136.34,136.26,0.1]
[1764169366874,3.46,136.33,136.26,0.1]
[1764169367074,0.67,136.34,136.26,7.43890587]
[1764169367276,50.0,136.4,136.3,13.05661954]
[1764169367277,13.05661954,136.37,136.3,13.05661954]
[1764169367486,16.308864,136.4,136.33,13.05661954]
[1764169367487,29.36548354,136.4,136.33,13.05661954]
[1764169367692,16.51661954,136.42,136.35,13.05661954]
[1764169367882,8.80994492,136.42,136.35,3.46]
[1764169368079,8.80994492,136.42,136.37,13.05661954]
[1764169368280,21.86656446,136.42,136.36,13.05661954]
[1764169368480,8.80994492,136.42,136.36,13.05661954]
[1764169368880,8.80994492,136.42,136.37,13.05661954]
[1764169369292,8.80994492,136.42,136.36,38.72397066]
[1764169369471,8.80994492,136.42,136.37,13.05661954]
[1764169369873,16.308864,136.43,136.38,13.75661954]
[1764169370103,16.308864,136.43,136.37,13.05661954]
[1764169370475,16.308864,136.43,136.38,13.05661954]
[1764169370679,29.36548354,136.43,136.36,38.72397066]
[1764169370980,29.36548354,136.43,136.37,13.05661954]
[1764169370981,16.308864,136.42,136.37,13.05661954]
[1764169371190,12.26994492,136.44,136.38,13.05661954]
[1764169371191,16.51661954,136.44,136.38,13.05661954]
[1764169371385,8.80994492,136.46,136.39,13.05661954]
[1764169371587,25.11880892,136.46,136.39,13.05661954]
[1764169371895,13.05661954,136.45,136.39,13.05661954]
[1764169372285,38.17542846,136.46,136.4,13.05661954]
[1764169372798,38.17542846,136.46,136.38,4.16]
[1764169372799,13.05661954,136.45,136.39,13.05661954]
[1764169372994,13.05661954,136.45,136.4,25.65982403]
[1764169373498,16.308864,136.43,136.4,25.65982403]
[1764169374275,16.308864,136.43,136.4,38.71644357]
[1764169374475,16.308864,136.43,136.4,39.41644357]
[1764169374705,16.308864,136.43,136.4,25.65982403]
[1764169375013,16.308864,136.43,136.4,38.71644357]
[1764169375177,16.308864,136.43,136.4,39.41644357]
[1764169375879,21.86656446,136.46,136.4,39.41644357]
[1764169376075,4.13,136.47,136.41,13.05661954]
[1764169376412,13.05661954,136.45,136.4,25.65982403]
[1764169377191,16.308864,136.43,136.4,39.41644357]
[1764169377495,16.308864,136.43,136.4,25.65982403]
[1764169377903,16.308864,136.43,136.4,39.41644357]
[1764169378474,16.308864,136.43,136.4,26.35982403]
[1764169378691,38.17542846,136.46,136.4,38.71644357]
[1764169379923,16.308864,136.46,136.41,13.75661954]
[1764169380103,13.05661954,136.48,136.43,13.05661954]
[1764169380287,13.05661954,136.47,136.42,3.46]
[1764169380675,16.308864,136.48,136.44,13.05661954]
[1764169380875,3.46,136.51,136.45,13.05661954]
[1764169381182,13.05661954,136.48,136.43,7.32950676]
[1764169381502,4.13,136.52,136.46,13.05661954]
[1764169381503,3.46,136.52,136.46,13.05661954]
[1764169381708,13.05661954,136.53,136.47,13.05661954]
[1764169381919,13.25661954,136.57,136.47,0.28432314]
[1764169382078,13.05661954,136.55,136.49,13.05661954]
[1764169382484,0.67,136.55,136.48,13.05661954]
[1764169382705,13.25661954,136.57,136.52,13.05661954]
[1764169383011,16.308864,136.54,136.51,13.05661954]
[1764169383382,13.25661954,136.57,136.52,20.38155361]
[1764169383718,13.05661954,136.56,136.52,7.32493407]
[1764169384692,13.05661954,136.56,136.52,25.63726925]
[1764169385397,17.178864,136.57,136.52,25.63726925]
[1764169385398,16.308864,136.55,136.52,25.63726925]
[1764169385710,16.308864,136.55,136.52,26.34726925]
[1764169386008,0.2,136.57,136.53,13.76661954]
[1764169386504,0.2,136.57,136.56,13.05661954]
[1764169386696,4.13,136.64,136.57,0.28432314]
[1764169386697,3.46,136.64,136.57,0.28432314]
[1764169386900,16.51661954,136.64,136.58,13.05661954]
[1764169387109,32.82548354,136.64,136.58,13.05661954]
[1764169387279,13.05661954,136.61,136.56,13.05661954]
[1764169387476,29.36548354,136.57,136.53,7.32439756]
[1764169387702,13.05661954,136.55,136.53,7.32439756]
[1764169388207,30.03548354,136.54,136.51,7.32518978]
[1764169388414,29.36548354,136.54,136.51,7.32518978]
[1764169388793,7.31856995,136.64,136.53,13.05661954]
[1764169388994,21.86656446,136.62,136.56,13.05661954]
[1764169389192,13.05661954,136.61,136.56,13.05661954]
[1764169389395,13.05661954,136.62,136.58,25.62600673]
[1764169389598,29.36548354,136.62,136.58,25.62600673]
[1764169389921,13.05661954,136.61,136.58,7.32171621]
[1764169390112,0.67,136.67,136.59,13.76661954]
[1764169390323,13.05661954,136.63,136.58,38.68262627]
[1764169390525,13.05661954,136.62,136.58,25.62600673]
[1764169390833,13.05661954,136.6,136.58,7.32171621]
[1764169391037,13.05661954,136.59,136.57,7.32207719]
[1764169391207,16.308864,136.58,136.57,7.32207719]
[1764169391531,29.36548354,136.62,136.57,39.39432754]
[1764169391696,13.05661954,136.64,136.58,13.76661954]
[1764169391896,13.05661954,136.66,136.6,13.05661954]
[1764169392093,16.308864,136.63,136.6,13.05661954]
[1764169392317,8.80994492,136.67,136.62,13.05661954]
[1764169392318,13.05661954,136.67,136.62,13.05661954]
[1764169392713,13.05661954,136.67,136.61,13.76661954]
[1764169392914,0.67,136.74,136.62,0.71]
[1764169393104,0.67,136.74,136.6,25.40313206]
[1764169393105,13.05661954,136.67,136.61,13.05661954]
[1764169393305,12.26994492,136.69,136.61,13.76661954]
[1764169393510,16.308864,136.66,136.62,25.61850387]
[1764169393728,16.308864,136.66,136.62,26.32850387]
[1764169394105,16.308864,136.66,136.62,39.38512341]
[1764169394623,16.308864,136.66,136.63,0.71]
[1764169394824,16.308864,136.66,136.62,75.98298609]
[1764169395012,16.308864,136.66,136.63,0.71]
[1764169395208,16.308864,136.66,136.62,75.27298609]
[1764169395412,29.36548354,136.66,136.62,18.29893134]
[1764169395611,16.308864,136.66,136.62,18.29893134]
[1764169395916,16.308864,136.66,136.62,19.00893134]
[1764169396614,16.308864,136.66,136.61,20.37672787]
[1764169396615,29.26646632,136.66,136.61,20.27771065]
[1764169396807,29.26646632,136.66,136.61,8.03010833]
[1764169397003,16.308864,136.66,136.61,25.62037917]
[1764169397221,29.98646632,136.66,136.61,25.62037917]
[1764169397430,12.95760232,136.63,136.61,7.32010833]
[1764169397619,12.95760232,136.63,136.59,25.62371394]
[1764169398525,16.308864,136.64,136.6,0.71]
[1764169398739,16.308864,136.64,136.6,12.95760232]
[1764169398925,28.76646632,136.64,136.59,38.58131626]
[1764169399231,28.76646632,136.64,136.59,26.33371394]
[1764169399617,28.76646632,136.64,136.59,39.29131626]
[1764169400037,15.808864,136.64,136.59,39.29131626]
[1764169400240,15.808864,136.64,136.6,13.66760232]
[1764169400807,15.808864,136.64,136.59,38.58131626]
[1764169401235,15.808864,136.64,136.6,0.71]
[1764169401724,7.31562162,136.7,136.61,38.57798149]
[1764169401930,16.308864,136.64,136.61,38.57798149]
[1764169402119,16.308864,136.64,136.61,26.33037917]
[1764169402317,12.95760232,136.69,136.63,12.95760232]
[1764169402628,10.89794464,136.69,136.63,7.43794464]
[1764169402824,16.308864,136.66,136.64,7.43794464]
[1764169403132,16.308864,136.66,136.61,25.62037917]
[1764169403133,7.43794464,136.66,136.61,33.05832381]
[1764169403316,23.74680864,136.67,136.61,33.76832381]
[1764169403516,16.308864,136.67,136.64,7.43794464]
[1764169403838,16.308864,136.66,136.65,7.3179656]
[1764169405330,7.43794464,136.68,136.64,7.31833716]
[1764169405531,24.46680864,136.68,136.64,7.31833716]
[1764169405736,24.46680864,136.68,136.63,25.61584746]
[1764169407330,17.028864,136.68,136.63,25.61584746]
[1764169407631,24.46680864,136.68,136.63,25.61584746]
[1764169408309,8.15794464,136.67,136.63,7.31903681]
[1764169408512,16.308864,136.65,136.63,7.31903681]
[1764169408730,10.89794464,136.64,136.59,18.30222002]
[1764169408924,27.20680864,136.64,136.59,26.45016466]
[1764169409126,27.20680864,136.64,136.6,0.71]
[1764169409323,23.74680864,136.64,136.6,0.71]
[1764169409708,0.72,136.7,136.63,7.43794464]
[1764169409912,7.43794464,136.68,136.63,7.43794464]
[1764169410134,7.43794464,136.67,136.62,8.14794464]
[1764169410638,7.43794464,136.67,136.63,0.71]
[1764169410850,16.308864,136.63,136.57,0.71]
[1764169411011,16.308864,136.64,136.6,7.43794464]
[1764169411413,23.74680864,136.64,136.58,33.77395137]
[1764169411623,23.74680864,136.64,136.59,8.14794464]
[1764169412022,23.74680864,136.64,136.59,7.43794464]
[1764169412328,23.74680864,136.64,136.6,0.71]
[1764169412940,23.74680864,136.64,136.61,7.32010833]
[1764169413148,23.74680864,136.64,136.61,25.62037917]
[1764169413527,16.308864,136.64,136.61,25.62037917]
[1764169413721,24.46680864,136.64,136.61,7.32010833]
[1764169414039,23.74680864,136.64,136.6,25.62207966]
[1764169414915,23.74680864,136.64,136.6,18.30161054]
[1764169415116,27.20680864,136.64,136.6,18.30161054]
[1764169415316,27.20680864,136.64,136.6,19.01161054]
[1764169415516,16.308864,136.61,136.53,7.32439756]
[1764169415753,16.308864,136.61,136.44,50.0]
[1764169415754,7.43794464,136.54,136.51,8.03505946]
[1764169415957,3.46,136.58,136.53,7.43794464]
[1764169416184,16.308864,136.59,136.55,7.43794464]
[1764169416459,16.308864,136.61,136.56,8.14794464]
[1764169416634,23.74680864,136.61,136.57,0.71]